fUSD/lending_fUSD_20241121
["ID","MTS","AMOUNT","RATE_DAILY","PERIOD"]
[342875915,1732191096113,-848.82,0.00042191,18]
[342875916,1732191096124,-500.0,0.00042191,18]
[342875917,1732191096133,-500.0,0.00042191,18]
[342875918,1732191096143,-3570.43,0.00042191,18]
[342875919,1732191096153,-500.0,0.00042191,18]
[342875920,1732191096163,-500.0,0.00042191,18]
[342875921,1732191096172,-584.16993512,0.00042191,18]
[342875922,1732191096182,-500.0,0.00042191,18]
[342875923,1732191096191,-500.0,0.00042191,18]
[342875924,1732191096200,-500.0,0.00042191,18]
[342875925,1732191096210,-500.0,0.00042191,18]
[342875926,1732191096219,-500.0,0.00042191,18]
[342875927,1732191096228,-500.0,0.00042191,18]
[342875928,1732191096238,-500.0,0.00042191,18]
[342875929,1732191096248,-613.58,0.00042191,18]
[342875930,1732191096257,-700.0,0.00042191,18]
[342875931,1732191096267,-840.55,0.00042191,18]
[342875932,1732191096278,-1634.27,0.00042191,18]
[342875933,1732191096288,-637.18,0.00042191,18]
[342875934,1732191096300,-150.0,0.00042191,18]
[342875935,1732191096309,-500.0,0.00042191,18]
[342875936,1732191096319,-500.0,0.00042191,18]
[342875937,1732191096327,-500.0,0.00042191,18]
[342875938,1732191096337,-562.7,0.00042191,18]
[342875939,1732191096346,-1013.77,0.00042191,18]
[342875940,1732191096356,-500.0,0.00042191,18]
[342875941,1732191096366,-500.0,0.00042191,18]
[342875942,1732191096378,-568.02279703,0.00042191,18]
[342875943,1732191096387,-1139.66,0.00042191,18]
[342875944,1732191096396,-500.0,0.00042191,18]
[342875945,1732191096405,-2261.49,0.00042191,18]
[342875946,1732191096414,-500.0,0.00042191,18]
[342875947,1732191096425,-1306.54,0.00042191,18]
[342875948,1732191096435,-957.43,0.00042191,18]
[342875949,1732191096444,-640.58,0.00042191,18]
[342875950,1732191096454,-1454.26,0.00042191,18]
[342875951,1732191096463,-542.93,0.00042191,18]
[342875952,1732191096472,-678.92,0.00042191,18]
[342875953,1732191096481,-500.0,0.00042191,18]
[342875954,1732191096490,-692.52,0.00042191,18]
[342875955,1732191096499,-500.0,0.00042191,18]
[342875956,1732191096508,-500.0,0.00042191,18]
[342875957,1732191096518,-863.92,0.00042191,18]
[342875958,1732191096527,-997.97,0.00042191,18]
[342875959,1732191096537,-500.0,0.00042191,18]
[342875960,1732191096546,-500.0,0.00042191,18]
[342875961,1732191096555,-506.81,0.00042191,18]
[342875962,1732191096565,-500.0,0.00042191,18]
[342875963,1732191096574,-571.32390719,0.00042191,18]
[342875964,1732191096583,-500.0,0.00042191,18]
[342875965,1732191096593,-2737.64,0.00042191,18]
[342875966,1732191096602,-500.0,0.00042191,18]
[342875967,1732191096612,-500.0,0.00042191,18]
[342875968,1732191096624,-500.0,0.00042191,18]
[342875969,1732191096633,-500.0,0.00042191,18]
[342875970,1732191096649,-545.4,0.00042191,18]
[342875971,1732191096658,-721.18,0.00042191,18]
[342875972,1732191096667,-1046.13,0.00042191,18]
[342875973,1732191096676,-500.0,0.00042191,18]
[342875974,1732191096685,-2737.41,0.00042191,18]
[342875975,1732191096694,-500.0,0.00042191,18]
[342875976,1732191096703,-500.0,0.00042191,18]
[342875977,1732191096712,-744.91,0.00042191,18]
[342875978,1732191096722,-500.0,0.00042191,18]
[342875979,1732191096731,-500.0,0.00042191,18]
[342875980,1732191096740,-778.58,0.00042191,18]
[342875981,1732191096750,-500.0,0.00042191,18]
[342875982,1732191096759,-1985.1,0.00042191,18]
[342875983,1732191096768,-500.0,0.00042191,18]
[342875984,1732191096777,-876.23,0.00042191,18]
[342875985,1732191096786,-2604.62,0.00042191,18]
[342875986,1732191096795,-372.76723148,0.00042191,18]
[342875987,1732191096805,-680.01,0.00042191,18]
[342875988,1732191096814,-500.0,0.00042191,18]
[342875989,1732191096823,-500.0,0.00042191,18]
[342875990,1732191096832,-500.0,0.00042191,18]
[342875991,1732191096841,-2317.16,0.00042191,18]
[342875992,1732191096851,-500.0,0.00042191,18]
[342875993,1732191096860,-714.15,0.00042191,18]
[342875994,1732191096869,-2293.79,0.00042191,7]
[342875995,1732191096880,-593.65,0.00042191,18]
[342875996,1732191096889,-500.0,0.00042191,18]
[342875997,1732191096898,-1046.37,0.00042191,18]
[342875998,1732191096906,-500.0,0.00042191,18]
[342875999,1732191096916,-500.0,0.00042191,18]
[342876000,1732191096926,-1997.34,0.00042191,18]
[342876001,1732191096936,-500.0,0.00042191,18]
[342876002,1732191096946,-525.86,0.00042191,18]
[342876003,1732191096955,-2082.4,0.00042191,18]
[342876004,1732191096965,-500.0,0.00042191,18]
[342876005,1732191096974,-500.0,0.00042191,18]
[342876006,1732191096983,-500.0,0.00042191,18]
[342876007,1732191096992,-500.0,0.00042191,18]
[342876008,1732191097001,-748.23,0.00042191,18]
[342876009,1732191097010,-567.85,0.00042191,18]
[342876010,1732191097019,-1201.09,0.00042191,18]
[342876011,1732191097028,-1451.38,0.00042191,18]
[342876012,1732191097038,-500.0,0.00042191,18]
[342876013,1732191097047,-844.36,0.00042191,18]
[342876014,1732191097056,-669.04,0.00042191,18]
[342876015,1732191097065,-500.0,0.00042191,18]
[342876016,1732191097074,-746.58,0.00042191,18]
[342876017,1732191097083,-1131.59,0.00042191,18]
[342876018,1732191097092,-500.0,0.00042191,18]
[342876019,1732191097101,-1126.24,0.00042191,18]
[342876020,1732191097110,-500.0,0.00042191,18]
[342876021,1732191097119,-500.0,0.00042191,18]
[342876022,1732191097130,-500.0,0.00042191,18]
[342876023,1732191097140,-2926.76,0.00042191,18]
[342876024,1732191097148,-988.46,0.00042191,18]
[342876025,1732191097158,-500.0,0.00042191,18]
[342876026,1732191097167,-1364.86,0.00042191,18]
[342876027,1732191097176,-500.0,0.00042191,18]
[342876028,1732191097185,-585.44,0.00042191,18]
[342876029,1732191097194,-556.38,0.00042191,18]
[342876030,1732191097204,-500.0,0.00042191,18]
[342876031,1732191097212,-500.0,0.00042191,18]
[342876032,1732191097221,-500.0,0.00042191,18]
[342876033,1732191097230,-500.0,0.00042191,18]
[342876034,1732191097240,-695.3,0.00042191,18]
[342876035,1732191097248,-306.54070565,0.00042191,18]
[342876036,1732191097257,-500.0,0.00042191,18]
[342876037,1732191097266,-500.0,0.00042191,18]
[342876038,1732191097275,-987.56,0.00042191,18]
[342876039,1732191097286,-500.0,0.00042191,18]
[342876040,1732191097295,-1546.54,0.00042191,18]
[342876041,1732191097305,-270.49919054,0.00042191,18]
[342876042,1732191097314,-623.98,0.00042191,18]
[342876043,1732191097322,-612.8,0.00042191,18]
[342876044,1732191097334,-500.0,0.00042191,18]
[342876045,1732191097343,-500.0,0.00042191,18]
[342876046,1732191097353,-1548.56,0.00042191,18]
[342876047,1732191097362,-1142.59,0.00042191,18]
[342876048,1732191097374,-578.83,0.00042191,18]
[342876049,1732191097382,-842.15,0.00042191,18]
[342876050,1732191097391,-500.0,0.00042191,18]
[342876051,1732191097400,-993.62,0.00042191,18]
[342876052,1732191097409,-1194.62,0.00042191,18]
[342876053,1732191097418,-996.33,0.00042191,18]
[342876054,1732191097427,-809.74,0.00042191,18]
[342876055,1732191097436,-1267.61,0.00042191,18]
[342876056,1732191097445,-2170.2,0.00042191,18]
[342876057,1732191097454,-500.0,0.00042191,18]
[342876058,1732191097462,-500.0,0.00042191,18]
[342876059,1732191097471,-950.37,0.00042191,18]
[342876060,1732191097480,-500.0,0.00042191,18]
[342876061,1732191097489,-1491.45,0.00042191,18]
[342876062,1732191097499,-711.7,0.00042191,18]
[342876063,1732191097508,-500.0,0.00042191,18]
[342876064,1732191097517,-500.0,0.00042191,18]
[342876065,1732191097526,-500.0,0.00042191,18]
[342876066,1732191097535,-500.0,0.00042191,18]
[342876067,1732191097544,-2151.95,0.00042191,18]
[342876068,1732191097554,-500.0,0.00042191,18]
[342876069,1732191097563,-857.13,0.00042191,18]
[342876070,1732191097572,-500.0,0.00042191,18]
[342876071,1732191097582,-500.0,0.00042191,18]
[342876072,1732191097591,-760.08,0.00042191,18]
[342876073,1732191097600,-500.0,0.00042191,18]
[342876074,1732191097609,-840.78,0.00042191,18]
[342876075,1732191097618,-2024.7,0.00042191,18]
[342876076,1732191097629,-732.35,0.00042191,18]
[342876077,1732191097639,-1954.49,0.00042191,18]
[342876078,1732191097648,-500.0,0.00042191,18]
[342876079,1732191097658,-500.0,0.00042191,18]
[342876080,1732191097667,-1679.88,0.00042191,18]
[342876081,1732191097676,-500.0,0.00042191,18]
[342876082,1732191097685,-500.0,0.00042191,18]
[342876083,1732191097695,-1482.57,0.00042191,18]
[342876084,1732191097704,-500.0,0.00042191,18]
[342876085,1732191097713,-612.26,0.00042191,18]
[342876086,1732191097722,-2132.94,0.00042191,18]
[342876087,1732191097731,-500.0,0.00042191,18]
[342876088,1732191097741,-500.0,0.00042191,18]
[342876089,1732191097750,-500.0,0.00042191,18]
[342876090,1732191097759,-500.0,0.00042191,18]
[342876091,1732191097768,-500.0,0.00042191,18]
[342876092,1732191097777,-500.0,0.00042191,18]
[342876093,1732191097786,-527.33,0.00042191,18]
[342876094,1732191097795,-1429.66,0.00042191,18]
[342876095,1732191097805,-500.0,0.00042191,18]
[342876096,1732191097815,-642.05,0.00042191,18]
[342876097,1732191097825,-781.1,0.00042191,18]
[342876098,1732191097834,-500.0,0.00042191,18]
[342876099,1732191097844,-1304.19,0.00042191,18]
[342876100,1732191097854,-444.39618431,0.00042191,18]
[342876101,1732191097863,-500.0,0.00042191,18]
[342876102,1732191097876,-582.68,0.00042191,18]
[342876103,1732191097885,-500.0,0.00042191,18]
[342876104,1732191097894,-500.0,0.00042191,18]
[342876105,1732191097904,-500.0,0.00042191,18]
[342876106,1732191097914,-500.0,0.00042191,18]
[342876107,1732191097923,-644.75,0.00042191,18]
[342876108,1732191097932,-500.0,0.00042191,18]
[342876109,1732191097943,-500.0,0.00042191,18]
[342876110,1732191097952,-500.0,0.00042191,18]
[342876111,1732191097961,-500.0,0.00042191,18]
[342876112,1732191097971,-858.51,0.00042191,18]
[342876113,1732191097980,-2327.14,0.00042191,18]
[342876114,1732191097990,-511.08,0.00042191,18]
[342876115,1732191097999,-208.28539801,0.00042191,18]
[342876116,1732191098008,-512.91,0.00042191,18]
[342876117,1732191098018,-2341.5,0.00042191,18]
[342876118,1732191098028,-500.0,0.00042191,18]
[342876119,1732191098038,-500.0,0.00042191,18]
[342876120,1732191098047,-500.0,0.00042191,18]
[342876121,1732191098057,-500.0,0.00042191,18]
[342876122,1732191098066,-2167.83,0.00042191,18]
[342876123,1732191098076,-500.0,0.00042191,18]
[342876124,1732191098085,-500.0,0.00042191,18]
[342876125,1732191098094,-2371.56,0.00042191,18]
[342876126,1732191098105,-500.0,0.00042191,18]
[342876127,1732191098114,-500.0,0.00042191,18]
[342876128,1732191098126,-500.0,0.00042191,18]
[342876129,1732191098135,-500.0,0.00042191,18]
[342876130,1732191098144,-500.0,0.00042191,18]
[342876131,1732191098153,-500.0,0.00042191,18]
[342876132,1732191098162,-668.19,0.00042191,18]
[342876133,1732191098171,-1117.68,0.00042191,18]
[342876134,1732191098180,-500.0,0.00042191,18]
[342876135,1732191098189,-500.0,0.00042191,18]
[342876136,1732191098197,-500.0,0.00042191,18]
[342876137,1732191098206,-2495.74,0.00042191,18]
[342876138,1732191098215,-500.0,0.00042191,18]
[342876139,1732191098224,-582.47,0.00042191,18]
[342876140,1732191098233,-500.0,0.00042191,18]
[342876141,1732191098242,-854.22,0.00042191,18]
[342876142,1732191098252,-1092.79,0.00042191,120]
[342876143,1732191098261,-1757.26,0.00042191,18]
[342876144,1732191098270,-500.0,0.00042191,18]
[342876145,1732191098280,-500.0,0.00042191,18]
[342876146,1732191098293,-714.96,0.00042191,18]
[342876147,1732191098302,-500.0,0.00042191,18]
[342876148,1732191098312,-737.6,0.00042191,18]
[342876149,1732191098321,-500.0,0.00042191,18]
[342876150,1732191098331,-500.0,0.00042191,18]
[342876151,1732191098341,-500.0,0.00042191,18]
[342876152,1732191098350,-500.0,0.00042191,18]
[342876153,1732191098360,-1909.61,0.00042191,18]
[342876154,1732191098370,-1033.27,0.00042191,18]
[342876155,1732191098383,-611.08,0.00042191,18]
[342876156,1732191098392,-2924.54,0.00042191,18]
[342876157,1732191098401,-500.0,0.00042191,18]
[342876158,1732191098411,-500.0,0.00042191,18]
[342876159,1732191098419,-1077.99,0.00042191,18]
[342876160,1732191098429,-500.0,0.00042191,18]
[342876161,1732191098438,-1004.0,0.00042191,18]
[342876162,1732191098447,-500.0,0.00042191,18]
[342876163,1732191098457,-500.0,0.00042191,18]
[342876164,1732191098467,-500.0,0.00042191,18]
[342876165,1732191098476,-1135.66,0.00042191,18]
[342876166,1732191098485,-500.0,0.00042191,18]
[342876167,1732191098495,-500.0,0.00042191,18]
[342876168,1732191098505,-541.47,0.00042191,18]
[342876169,1732191098515,-1647.02,0.00042191,18]
[342876170,1732191098524,-982.98,0.00042191,18]
[342876171,1732191098533,-1394.23,0.00042191,18]
[342876172,1732191098542,-546.45,0.00042191,18]
[342876173,1732191098552,-500.0,0.00042191,18]
[342876174,1732191098562,-500.0,0.00042191,18]
[342876175,1732191098571,-1315.62,0.00042191,18]
[342876176,1732191098581,-1570.7,0.00042191,18]
[342876177,1732191098590,-500.0,0.00042191,18]
[342876178,1732191098600,-500.0,0.00042191,18]
[342876179,1732191098610,-500.0,0.00042191,18]
[342876180,1732191098619,-500.0,0.00042191,18]
[342876181,1732191098632,-755.11,0.00042191,18]
[342876182,1732191098641,-500.0,0.00042191,18]
[342876183,1732191098651,-500.0,0.00042191,18]
[342876184,1732191098661,-577.0,0.00042191,18]
[342876185,1732191098670,-500.0,0.00042191,18]
[342876186,1732191098680,-500.0,0.00042191,18]
[342876187,1732191098689,-1286.15,0.00042191,18]
[342876188,1732191098698,-566.81,0.00042191,18]
[342876189,1732191098708,-728.32,0.00042191,18]
[342876190,1732191098717,-500.0,0.00042191,18]
[342876191,1732191098727,-1444.78,0.00042191,18]
[342876192,1732191098736,-1094.08,0.00042191,18]
[342876193,1732191098746,-500.0,0.00042191,18]
[342876194,1732191098755,-500.0,0.00042191,18]
[342876195,1732191098765,-2180.36,0.00042191,18]
[342876196,1732191098775,-694.12,0.00042191,18]
[342876197,1732191098784,-500.0,0.00042191,18]
[342876198,1732191098793,-915.17,0.00042191,18]
[342876199,1732191098803,-1835.94,0.00042191,18]
[342876200,1732191098812,-935.76,0.00042191,18]
[342876201,1732191098822,-500.0,0.00042191,18]
[342876202,1732191098831,-216.01186773,0.00042191,18]
[342876203,1732191098841,-715.45,0.00042191,18]
[342876204,1732191098851,-500.0,0.00042191,18]
[342876205,1732191098860,-1241.38,0.00042191,18]
[342876206,1732191098870,-500.0,0.00042191,18]
[342876207,1732191098882,-500.0,0.00042191,18]
[342876208,1732191098891,-500.0,0.00042191,18]
[342876209,1732191098900,-500.0,0.00042191,18]
[342876210,1732191098910,-2704.76,0.00042191,18]
[342876211,1732191098919,-500.0,0.00042191,18]
[342876212,1732191098928,-500.0,0.00042191,18]
[342876213,1732191098938,-1470.7,0.00042191,18]
[342876214,1732191098948,-1514.14,0.00042191,18]
[342876215,1732191098958,-500.0,0.00042191,18]
[342876216,1732191098969,-655.67,0.00042191,18]
[342876217,1732191098978,-1219.44,0.00042191,18]
[342876218,1732191098988,-880.66,0.00042191,18]
[342876219,1732191098997,-1205.9,0.00042191,18]
[342876220,1732191099007,-500.0,0.00042191,18]
[342876221,1732191099017,-3764.16,0.00042191,18]
[342876222,1732191099027,-2017.87,0.00042191,18]
[342876223,1732191099036,-523.01,0.00042191,18]
[342876224,1732191099046,-986.54,0.00042191,18]
[342876225,1732191099056,-500.0,0.00042191,18]
[342876226,1732191099066,-1469.12,0.00042191,18]
[342876227,1732191099075,-500.0,0.00042191,18]
[342876228,1732191099085,-543.39,0.00042191,18]
[342876229,1732191099095,-730.45,0.00042191,18]
[342876230,1732191099105,-636.3,0.00042191,18]
[342876231,1732191099115,-580.5,0.00042191,18]
[342876232,1732191099128,-500.0,0.00042191,18]
[342876233,1732191099139,-829.35,0.00042191,18]
[342876234,1732191099148,-1570.06,0.00042191,18]
[342876235,1732191099159,-500.0,0.00042191,18]
[342876236,1732191099169,-500.0,0.00042191,18]
[342876237,1732191099179,-500.0,0.00042191,18]
[342876238,1732191099189,-3907.02,0.00042191,18]
[342876239,1732191099199,-1202.21,0.00042191,18]
[342876240,1732191099209,-666.57,0.00042191,18]
[342876241,1732191099220,-500.0,0.00042191,18]
[342876242,1732191099229,-500.0,0.00042191,18]
[342876243,1732191099239,-776.04,0.00042191,18]
[342876244,1732191099248,-571.37,0.00042191,18]
[342876245,1732191099258,-528.61,0.00042191,18]
[342876246,1732191099268,-2022.73,0.00042191,18]
[342876247,1732191099279,-1065.89,0.00042191,18]
[342876248,1732191099290,-500.0,0.00042191,18]
[342876249,1732191099303,-500.0,0.00042191,18]
[342876250,1732191099313,-500.0,0.00042191,18]
[342876251,1732191099323,-3647.75,0.00042191,18]
[342876252,1732191099333,-500.0,0.00042191,18]
[342876253,1732191099346,-831.07,0.00042191,18]
[342876254,1732191099357,-500.0,0.00042191,18]
[342876255,1732191099368,-500.0,0.00042191,18]
[342876256,1732191099385,-1318.95,0.00042191,18]
[342876257,1732191099395,-500.0,0.00042191,18]
[342876258,1732191099405,-500.0,0.00042191,18]
[342876259,1732191099415,-637.04,0.00042191,18]
[342876260,1732191099426,-514.31,0.00042191,18]
[342876261,1732191099437,-534.75,0.00042191,18]
[342876262,1732191099448,-500.0,0.00042191,18]
[342876263,1732191099460,-500.0,0.00042191,18]
[342876264,1732191099471,-500.0,0.00042191,18]
[342876265,1732191099481,-856.19,0.00042191,18]
[342876266,1732191099491,-683.73,0.00042191,18]
[342876267,1732191099501,-817.02,0.00042191,18]
[342876268,1732191099511,-500.0,0.00042191,18]
[342876269,1732191099521,-580.89,0.00042191,18]
[342876270,1732191099531,-795.45,0.00042191,18]
[342876271,1732191099541,-1756.0,0.00042191,18]
[342876272,1732191099550,-500.0,0.00042191,18]
[342876273,1732191099562,-500.0,0.00042191,18]
[342876274,1732191099572,-620.67,0.00042191,18]
[342876275,1732191099582,-944.31,0.00042191,18]
[342876276,1732191099592,-500.0,0.00042191,18]
[342876277,1732191099602,-1408.81,0.00042191,18]
[342876278,1732191099612,-500.0,0.00042191,18]
[342876279,1732191099622,-1371.35,0.00042191,18]
[342876280,1732191099635,-964.63,0.00042191,18]
[342876281,1732191099645,-500.0,0.00042191,18]
[342876282,1732191099655,-500.0,0.00042191,18]
[342876283,1732191099664,-500.0,0.00042191,18]
[342876284,1732191099675,-511.19,0.00042191,18]
[342876285,1732191099685,-500.0,0.00042191,18]
[342876286,1732191099694,-3814.88,0.00042191,18]
[342876287,1732191099704,-500.0,0.00042191,18]
[342876288,1732191099714,-522.87,0.00042191,18]
[342876289,1732191099724,-735.78,0.00042191,18]
[342876290,1732191099734,-500.0,0.00042191,18]
[342876291,1732191099745,-920.01,0.00042191,18]
[342876292,1732191099755,-627.27,0.00042191,18]
[342876293,1732191099765,-500.0,0.00042191,18]
[342876294,1732191099775,-599.89,0.00042191,18]
[342876295,1732191099785,-500.0,0.00042191,18]
[342876296,1732191099795,-928.61,0.00042191,18]
[342876297,1732191099804,-612.04,0.00042191,18]
[342876298,1732191099814,-500.0,0.00042191,18]
[342876299,1732191099823,-500.0,0.00042191,18]
[342876300,1732191099833,-509.02,0.00042191,18]
[342876301,1732191099843,-1132.05,0.00042191,18]
[342876302,1732191099853,-966.51,0.00042191,18]
[342876303,1732191099862,-1695.31,0.00042191,18]
[342876304,1732191099872,-599.85,0.00042191,18]
[342876305,1732191099885,-500.0,0.00042191,18]
[342876306,1732191099894,-4036.02,0.00042191,18]
[342876307,1732191099903,-500.0,0.00042191,18]
[342876308,1732191099913,-500.0,0.00042191,18]
[342876309,1732191099923,-675.03,0.00042191,18]
[342876310,1732191099932,-500.0,0.00042191,18]
[342876311,1732191099942,-500.0,0.00042191,18]
[342876312,1732191099951,-500.0,0.00042191,18]
[342876313,1732191099961,-871.28,0.00042191,18]
[342876314,1732191099970,-500.0,0.00042191,18]
[342876315,1732191099980,-500.0,0.00042191,18]
[342876316,1732191099989,-990.2,0.00042191,18]
[342876317,1732191099999,-586.3,0.00042191,18]
[342876318,1732191100008,-500.0,0.00042191,18]
[342876319,1732191100017,-985.51,0.00042191,18]
[342876320,1732191100027,-500.0,0.00042191,18]
[342876321,1732191100036,-755.06,0.00042191,18]
[342876322,1732191100046,-500.0,0.00042191,18]
[342876323,1732191100055,-956.48,0.00042191,18]
[342876324,1732191100065,-864.39,0.00042191,18]
[342876325,1732191100074,-2053.95,0.00042191,18]
[342876326,1732191100084,-2647.96,0.00042191,18]
[342876327,1732191100094,-500.0,0.00042191,18]
[342876328,1732191100104,-673.32,0.00042191,18]
[342876329,1732191100114,-987.09,0.00042191,18]
[342876330,1732191100126,-1224.59,0.00042191,18]
[342876331,1732191100135,-568.31,0.00042191,18]
[342876332,1732191100145,-931.96,0.00042191,18]
[342876333,1732191100155,-500.0,0.00042191,18]
[342876334,1732191100164,-888.57,0.00042191,18]
[342876335,1732191100174,-500.0,0.00042191,18]
[342876336,1732191100184,-3336.09,0.00042191,18]
[342876337,1732191100193,-500.0,0.00042191,18]
[342876338,1732191100203,-1037.23,0.00042191,18]
[342876339,1732191100213,-671.17,0.00042191,18]
[342876340,1732191100222,-1790.53,0.00042191,18]
[342876341,1732191100232,-500.0,0.00042191,18]
[342876342,1732191100242,-1112.73,0.00042191,18]
[342876343,1732191100252,-500.0,0.00042191,18]
[342876344,1732191100262,-500.0,0.00042191,18]
[342876345,1732191100272,-500.0,0.00042191,18]
[342876346,1732191100283,-500.0,0.00042191,18]
[342876347,1732191100298,-602.51,0.00042191,18]
[342876348,1732191100308,-797.91,0.00042191,18]
[342876349,1732191100317,-500.0,0.00042191,18]
[342876350,1732191100327,-500.0,0.00042191,18]
[342876351,1732191100338,-500.0,0.00042191,18]
[342876352,1732191100348,-500.0,0.00042191,18]
[342876353,1732191100357,-1931.79,0.00042191,18]
[342876354,1732191100367,-674.86,0.00042191,18]
[342876355,1732191100378,-1398.71,0.00042191,18]
[342876356,1732191100388,-629.42,0.00042191,18]
[342876357,1732191100398,-510.12,0.00042191,18]
[342876358,1732191100407,-500.0,0.00042191,18]
[342876359,1732191100417,-500.0,0.00042191,18]
[342876360,1732191100427,-214.09970023,0.00042191,18]
[342876361,1732191100436,-1345.63,0.00042191,18]
[342876362,1732191100446,-1023.16,0.00042191,18]
[342876363,1732191100455,-1000.0,0.00042191,18]
[342876364,1732191100465,-5477.54,0.00042191,18]
[342876365,1732191100474,-500.0,0.00042191,18]
[342876366,1732191100484,-500.0,0.00042191,18]
[342876367,1732191100493,-646.67,0.00042191,18]
[342876368,1732191100503,-1034.41,0.00042191,18]
[342876369,1732191100512,-500.0,0.00042191,18]
[342876370,1732191100522,-500.0,0.00042191,18]
[342876371,1732191100532,-500.0,0.00042191,18]
[342876372,1732191100542,-3350.27,0.00042191,18]
[342876373,1732191100551,-500.0,0.00042191,18]
[342876374,1732191100561,-951.56,0.00042191,18]
[342876375,1732191100571,-500.0,0.00042191,18]
[342876376,1732191100581,-500.0,0.00042191,18]
[342876377,1732191100591,-791.81,0.00042191,18]
[342876378,1732191100601,-500.0,0.00042191,18]
[342876379,1732191100611,-624.01,0.00042191,18]
[342876380,1732191100620,-500.0,0.00042191,18]
[342876381,1732191100633,-500.0,0.00042191,18]
[342876382,1732191100643,-2280.61,0.00042191,18]
[342876383,1732191100654,-1385.12,0.00042191,18]
[342876384,1732191100664,-904.44,0.00042191,18]
[342876385,1732191100674,-1939.74,0.00042191,18]
[342876386,1732191100684,-1411.9,0.00042191,18]
[342876387,1732191100694,-500.0,0.00042191,18]
[342876388,1732191100704,-534.21,0.00042191,18]
[342876389,1732191100714,-516.34307496,0.00042191,18]
[342876390,1732191100724,-500.0,0.00042191,18]
[342876391,1732191100734,-54170.23,0.00042191,5]
[342876392,1732191100743,-507.95,0.00042191,18]
[342876393,1732191100754,-500.0,0.00042191,18]
[342876394,1732191100764,-3154.79,0.00042191,18]
[342876395,1732191100773,-2457.28,0.00042191,18]
[342876396,1732191100783,-3395.77,0.00042191,18]
[342876397,1732191100792,-500.0,0.00042191,18]
[342876398,1732191100802,-894.23,0.00042191,18]
[342876399,1732191100811,-500.0,0.00042191,18]
[342876400,1732191100821,-899.9,0.00042191,18]
[342876401,1732191100831,-500.0,0.00042191,18]
[342876402,1732191100840,-500.0,0.00042191,18]
[342876403,1732191100850,-1220.62,0.00042191,18]
[342876404,1732191100859,-500.0,0.00042191,18]
[342876405,1732191100869,-500.0,0.00042191,18]
[342876406,1732191100881,-1505.36,0.00042191,18]
[342876407,1732191100891,-500.0,0.00042191,18]
[342876408,1732191100900,-500.0,0.00042191,18]
[342876409,1732191100910,-1052.65,0.00042191,18]
[342876410,1732191100920,-1308.23,0.00042191,18]
[342876411,1732191100930,-14798.35,0.00042191,18]
[342876412,1732191100942,-500.0,0.00042191,18]
[342876413,1732191100952,-585.17,0.00042191,18]
[342876414,1732191100962,-1214.68,0.00042191,18]